bitfinex-derivatives/quotes_ETHF0:USTF0_20250316
["timestamp","ask_amount","ask_price","bid_price","bid_amount"]
[1742127078508,1.4191,1879.2,1878.9,3.98497999]
[1742127078706,1.4191,1879.2,1878.9,0.00797999]
[1742127078905,2.48339,1879.2,1878.9,1.07238999]
[1742127079105,2.48339,1879.2,1879.0,1.06434]
[1742127079406,1.4191,1879.1,1879.0,1.06434]
[1742127080713,1.3913,1879.3,1879.2,1.06426]
[1742127082100,2.8017,1879.3,1879.2,1.06426]
[1742127083613,3.86591,1879.3,1879.1,1.06427]
[1742127083807,1.4104,1879.2,1879.1,1.06427]
[1742127084111,1.4104,1879.2,1879.0,1.06432]
[1742127084313,1.3177,1879.1,1879.0,1.06437]
[1742127084611,1.3177,1879.1,1879.0,2.49287]
[1742127089510,1.4104,1879.2,1879.1,1.06431]
[1742127089817,1.3913,1879.3,1879.2,1.06426]
[1742127090109,1.3913,1879.3,1879.2,8.24706]
[1742127090520,1.4476,1879.5,1879.4,1.06414]
[1742127094320,1.4476,1879.5,1879.3,1.06416]
[1742127094515,2.51169,1879.5,1879.0,3.2078]
[1742127094713,1.06415,1879.4,1879.1,6.44867]
[1742127094919,2.38875,1879.4,1879.2,1.06425]
[1742127095117,1.3484,1879.3,1879.2,1.06425]
[1742127095317,2.673,1879.3,1879.0,3.2078]
[1742127095518,2.673,1879.3,1879.2,1.06426]
[1742127096118,2.673,1879.3,1879.0,8.5922]
[1742127096119,2.673,1879.3,1879.1,1.4114]
[1742127096321,1.3246,1879.2,1879.1,2.47571]
[1742127096820,1.3484,1879.3,1879.2,1.06426]
[1742127097019,1.4577,1879.5,1879.4,1.06414]
[1742127097223,2.8061,1879.5,1879.4,1.06414]
[1742127098022,2.8061,1879.5,1879.4,2.48044]
[1742127102619,2.8061,1879.5,1879.3,3.973]
[1742127102620,3.87021,1879.5,1879.3,1.06417]
[1742127102926,1.3742,1879.4,1879.3,1.06417]
[1742127103515,1.3742,1879.4,1879.2,4.27202]
[1742127103724,1.3742,1879.4,1879.0,2.6609]
[1742127103725,4.27202,1879.3,1879.1,1.06429]
[1742127103926,1.3742,1879.2,1879.1,1.06429]
[1742127104129,2.7544,1879.2,1879.1,1.06429]
[1742127105427,1.06434,1879.1,1878.9,0.00797999]
[1742127105615,4.582,1879.1,1879.0,1.06437]
[1742127105820,1.3742,1879.1,1879.0,1.06437]
[1742127109241,2.43851,1879.1,1878.9,2.42616999]
[1742127109444,0.7044,1879.0,1878.9,2.42616999]
[1742127109634,2.0922,1879.0,1878.9,2.42616999]
[1742127112240,3.15657,1879.0,1878.9,0.00797999]
[1742127112537,2.0922,1879.0,1878.7,1.06451]
[1742127112746,2.1525,1878.9,1878.7,1.06453]
[1742127113046,2.50838,1878.8,1878.7,1.06454]
[1742127113642,2.50838,1878.8,1878.2,32.16795]
[1742127113643,1.06474,1878.4,1878.0,3.2078]
[1742127113939,1.06462,1878.6,1878.2,2.66207]
[1742127114141,0.00798956,1878.4,1878.3,2.49227]
[1742127115739,3.09892956,1878.4,1878.2,1.0648]
[1742127115947,1.3508,1878.3,1878.2,2.5253]
[1742127116842,2.0459,1878.3,1878.2,1.4605]
[1742127117148,2.0459,1878.3,1878.2,2.52532]
[1742127117739,2.0459,1878.3,1878.2,1.4605]
[1742127117740,3.11067,1878.3,1878.2,1.4605]
[1742127117942,2.0459,1878.3,1878.2,2.52532]
[1742127118548,2.0459,1878.3,1878.2,1.4605]
[1742127118743,3.11067,1878.3,1878.2,1.4605]
[1742127118944,2.0459,1878.3,1878.2,1.4605]
[1742127119149,3.11067,1878.3,1878.2,1.4605]
[1742127119352,2.0459,1878.3,1878.2,2.52532]
[1742127119552,3.11067,1878.3,1878.2,1.4605]
[1742127120255,2.0459,1878.3,1878.2,2.52532]
[1742127123855,2.0459,1878.3,1878.2,1.4605]
[1742127124154,2.0459,1878.3,1878.2,2.52532]
[1742127124348,2.0459,1878.3,1878.2,1.4605]
[1742127124645,2.0459,1878.3,1878.2,2.52532]
[1742127127956,3.11067,1878.3,1878.2,1.06482]
[1742127128350,2.0459,1878.3,1878.1,4.27266]
[1742127128655,2.48803,1878.2,1878.0,1.3846]
[1742127128853,1.4232,1878.1,1878.0,2.44949]
[1742127129245,2.48808,1878.1,1878.0,1.06489]
[1742127129650,2.48811,1878.1,1878.0,1.06494]
[1742127129857,1.4232,1878.1,1878.0,1.06494]
[1742127130048,1.4232,1878.1,1878.0,2.44954]
[1742127130354,0.6951,1878.3,1878.2,1.06482]
[1742127130542,2.1087,1878.3,1878.2,1.06482]
[1742127131951,2.1087,1878.3,1878.2,2.44322]
[1742127132151,3.17347,1878.3,1878.2,1.3784]
[1742127132554,1.06482,1878.2,1878.1,3.2078]
[1742127132756,1.4136,1878.2,1878.1,1.06488]
[1742127132954,1.4136,1878.2,1878.1,2.44328]
[1742127133556,2.47842,1878.2,1878.1,2.44328]
[1742127134056,2.47842,1878.2,1878.1,1.3784]
[1742127134551,1.4136,1878.2,1877.9,4.27277]
[1742127134756,2.5085,1878.1,1878.0,1.06494]
[1742127134952,2.5085,1878.1,1878.0,2.41374]
[1742127135154,2.5085,1878.1,1878.0,1.3488]
[1742127135456,3.9029,1878.3,1878.0,1.3488]
[1742127135645,1.4436,1878.2,1878.1,1.06488]
[1742127140659,1.06488,1878.1,1878.0,1.3488]
[1742127140858,1.4436,1878.2,1878.0,1.3488]
[1742127140859,2.50847,1878.2,1878.0,2.41374]
[1742127141054,2.50846,1878.2,1878.0,2.41374]
[1742127141249,1.06486,1878.2,1878.1,1.3456]
[1742127141760,1.7599,1878.3,1878.1,2.41044]
[1742127141953,0.6951,1878.3,1878.1,1.3456]
[1742127142148,1.75987,1878.3,1878.2,2.41042]
[1742127142353,1.75987,1878.3,1878.2,1.3456]
[1742127143659,1.06482,1878.2,1878.1,1.06484]
[1742127144161,0.6951,1878.3,1878.1,1.06484]
[1742127144363,1.06482,1878.2,1878.1,1.06484]
[1742127145062,1.75991,1878.3,1878.1,1.06484]
[1742127145362,0.6951,1878.3,1878.1,1.06484]
[1742127145562,1.06482,1878.2,1878.1,1.06484]
[1742127146663,0.6951,1878.3,1877.9,3.2078]
[1742127146964,1.06488,1878.1,1878.0,2.47142]
[1742127147463,1.06487,1878.2,1878.1,1.06487]
[1742127147963,1.06483,1878.2,1878.1,1.06482]
[1742127150259,1.06483,1878.2,1878.0,2.4714]
[1742127150462,1.06483,1878.2,1878.1,1.06488]
[1742127150661,1.06483,1878.2,1878.1,1.4483]
[1742127151167,1.06483,1878.2,1878.1,2.51318]
[1742127151364,1.06483,1878.2,1878.1,1.4483]
[1742127152966,1.06483,1878.2,1878.1,2.51318]
[1742127153168,1.06483,1878.2,1878.1,1.4483]
[1742127157471,1.06505,1877.9,1877.8,1.06504]
[1742127157669,1.06498,1878.0,1877.9,1.06497]
[1742127157870,1.06499,1877.9,1877.8,2.4999]
[1742127158167,1.78799,1877.9,1877.8,2.4999]
[1742127160266,3.12969,1877.9,1877.8,2.4999]
[1742127160666,3.12969,1877.9,1877.8,1.4349]
[1742127162372,3.12969,1877.9,1877.8,2.49995]
[1742127163172,3.12969,1877.9,1877.8,1.4349]
[1742127163775,2.0647,1877.9,1877.8,2.49995]
[1742127163966,2.0647,1877.9,1877.8,1.4349]
[1742127164273,3.12969,1877.9,1877.8,1.4349]
[1742127164877,1.06505,1877.8,1877.7,3.2078]
[1742127165177,2.48745,1877.8,1877.7,4.6463]
[1742127167873,2.48745,1877.8,1877.7,1.4385]
[1742127169076,1.06516,1877.6,1877.5,1.06517]
[1742127169279,1.06516,1877.6,1877.5,2.46747]
[1742127169579,1.06522,1877.5,1877.4,1.06525]
[1742127169779,3.78062,1877.5,1877.4,1.3253]
[1742127171070,1.06545,1877.2,1877.1,1.06542]
[1742127171379,1.06545,1877.2,1877.1,2.39072]
[1742127171579,2.39974956,1877.3,1877.2,1.06539]
[1742127171781,1.06539,1877.2,1877.1,2.39072]
[1742127172075,2.39179,1877.2,1877.1,2.39072]
[1742127172476,3.07219,1877.2,1877.1,2.39072]
[1742127172866,3.07219,1877.2,1877.1,1.3253]
[1742127176582,0.00798956,1877.3,1877.2,1.06539]
[1742127177277,1.42638956,1877.3,1877.2,1.06539]
[1742127177779,2.15288956,1877.3,1877.2,1.06539]
[1742127183184,2.15288956,1877.3,1877.1,2.39071]
[1742127183386,1.4096,1877.2,1877.1,2.39071]
[1742127183576,1.4096,1877.2,1877.1,1.06541]
[1742127183884,1.4096,1877.2,1877.1,1.06545]
[1742127184084,2.47499,1877.2,1877.1,1.06545]
[1742127184479,1.4096,1877.2,1877.1,1.06545]
[1742127185086,5.68282,1877.2,1877.1,1.06545]
[1742127185387,1.4096,1877.2,1877.1,1.06545]
[1742127185893,0.73448956,1877.3,1877.2,1.06539]
[1742127186078,2.18938956,1877.3,1877.2,1.06539]
[1742127189593,3.25471956,1877.3,1877.2,1.06539]
[1742127189894,2.18938956,1877.3,1877.2,1.06539]
[1742127192491,3.25471956,1877.3,1877.2,1.06539]
[1742127192795,2.18938956,1877.3,1876.9,5.87168]
[1742127193097,1.3926,1877.2,1877.1,1.06542]
[1742127193591,0.73448956,1877.3,1877.1,1.06542]
[1742127193794,0.73448956,1877.3,1877.2,1.06539]
[1742127194297,0.00798956,1877.3,1877.2,7.51839]
[1742127194498,0.6692,1877.5,1877.4,1.06528]
[1742127194799,0.6692,1877.5,1877.4,4.27308]
[1742127197110,0.00798956,1877.6,1877.5,1.06522]
[1742127197498,0.00798956,1877.6,1877.5,7.51722]
[1742127197799,0.7169,1878.0,1877.9,1.06499]
[1742127198103,3.952,1878.5,1878.4,1.06471]
[1742127198104,5.826,1878.5,1878.4,1.06471]
[1742127198304,0.7179,1878.5,1878.4,1.06471]
[1742127198906,0.7179,1878.5,1878.1,9.82193]
[1742127198907,3.2078,1878.7,1878.6,1.0646]
[1742127199106,3.9257,1878.7,1878.6,1.0646]
[1742127199702,4.6426,1878.7,1878.4,3.951]
[1742127200100,1.3236,1878.6,1878.5,2.48665]
[1742127200799,4.6426,1878.7,1878.6,1.0646]
[1742127201205,5.9797,1878.7,1878.5,2.48663]
[1742127201508,7.04424,1878.7,1878.5,1.422]
[1742127201704,2.7719,1878.7,1878.5,1.06464]
[1742127202008,2.7719,1878.7,1878.6,1.0646]
[1742127202803,2.7719,1878.7,1878.6,2.3974]
[1742127203000,1.4348,1878.7,1878.6,2.3974]
[1742127204408,1.4348,1878.7,1878.6,1.3328]
[1742127204604,1.4348,1878.7,1878.5,4.27243]
[1742127204800,1.3864,1878.6,1878.5,3.2078]
[1742127205000,1.3864,1878.6,1878.5,4.27245]
[1742127205607,1.4348,1878.7,1878.6,1.0646]
[1742127205803,2.8212,1878.7,1878.6,2.4317]
[1742127207202,2.8212,1878.7,1878.6,1.0646]
[1742127207809,2.8212,1878.7,1878.6,2.4192]
[1742127210411,0.7169,1878.7,1878.6,2.4192]
[1742127214414,0.7169,1878.7,1878.6,6.3652]
[1742127216304,0.00798956,1878.8,1878.7,1.06454]
[1742127216508,0.00798956,1878.8,1878.7,5.74994]
[1742127216705,0.00798956,1878.8,1878.7,8.24994]
[1742127216906,0.00798956,1878.8,1878.7,5.74994]
[1742127218617,0.00798956,1878.8,1878.7,8.24994]
[1742127219627,9.56e-06,1878.8,1878.7,8.24994]
[1742127220626,0.6906,1879.3,1879.2,1.06426]
[1742127220825,0.6906,1879.3,1879.2,5.00726]
[1742127221326,2.1222,1879.3,1879.2,6.45246]
[1742127222322,0.6906,1879.3,1879.2,6.45246]
[1742127222631,0.00798956,1879.4,1879.3,1.0642]
[1742127222826,0.00798956,1879.4,1879.3,5.5949]
[1742127224527,0.00798956,1879.4,1879.3,2.3871]
[1742127224714,0.72968956,1879.4,1879.3,1.0642]
[1742127225127,0.72968956,1879.4,1879.2,3.943]
[1742127225326,0.72968956,1879.4,1879.2,5.00726]
[1742127225327,1.4334,1879.3,1879.2,5.00726]
[1742127225527,1.4334,1879.3,1879.2,1.06426]
[1742127226628,2.49761,1879.3,1879.1,4.27208]
[1742127226929,2.49761,1879.3,1879.0,1.06433]
[1742127226930,1.06426,1879.2,1879.0,1.06433]
[1742127227131,1.4334,1879.1,1879.0,1.06433]
[1742127227324,2.1167,1879.1,1879.0,1.06433]
[1742127228629,2.7959,1879.1,1879.0,1.06433]
[1742127241642,2.7959,1879.1,1878.8,4.27224]
[1742127241643,3.86027,1879.1,1878.8,4.27224]
[1742127241837,1.461,1879.0,1878.9,1.06443]
[1742127244538,1.461,1879.0,1878.9,2.42933]
[1742127244742,1.3625,1879.1,1879.0,1.06437]
[1742127245045,1.3625,1879.1,1879.0,2.42927]
[1742127246846,1.3625,1879.1,1879.0,1.06437]
[1742127247345,2.42681,1879.1,1878.8,3.2078]
[1742127247545,1.4378,1879.0,1878.9,1.06443]
[1742127248543,2.50217,1879.0,1878.9,1.06443]
[1742127248738,2.50217,1879.0,1878.8,4.27224]
[1742127248943,1.4378,1878.9,1878.8,4.27224]
[1742127249349,1.4378,1878.9,1878.8,5.63114]
[1742127250251,2.50223,1878.9,1878.8,5.63114]
[1742127250549,1.4378,1878.9,1878.5,3.2078]
[1742127250854,1.06456,1878.7,1878.6,1.06457]
[1742127251257,2.0647,1878.7,1878.5,1.06463]
[1742127251458,1.0646,1878.6,1878.5,1.06463]
[1742127251656,1.06467,1878.5,1878.4,1.0647]
[1742127251873,0.677,1878.5,1878.4,1.0647]
[1742127252075,2.0677,1878.5,1878.4,2.4491]
[1742127253573,0.6768,1878.7,1878.6,1.0646]
[1742127254876,2.0675,1878.7,1878.6,2.449]
[1742127255370,0.7319,1878.8,1878.7,1.06454]
[1742127255575,0.7319,1878.8,1878.7,2.48144]
[1742127255777,2.0532,1878.8,1878.7,2.48144]
[1742127258373,3.2078,1878.9,1878.8,1.06448]
[1742127258577,1.4617,1879.0,1878.9,1.06443]
[1742127259076,1.3997,1879.3,1878.8,1.4101]
[1742127259077,1.3997,1879.3,1878.8,4.07131]
[1742127259265,1.4617,1879.2,1879.1,1.06431]
[1742127260174,0.00798956,1879.4,1879.3,1.0642]
[1742127263374,0.00798956,1879.4,1879.3,5.7124]
[1742127263583,3.2078,1879.9,1879.8,1.06392]
[1742127263778,6.0661,1879.9,1879.8,1.06392]
[1742127264477,3.2078,1879.9,1879.8,1.06392]
[1742127264975,0.00798956,1880.0,1879.9,1.06386]
[1742127265166,0.00798956,1880.0,1879.9,6.45226]
[1742127266273,3.2078,1880.4,1880.3,1.06363]
[1742127266579,2.0854,1880.5,1880.4,1.06358]
[1742127267375,9.0338,1881.0,1880.3,4.11547]
[1742127267575,0.00798956,1880.6,1880.5,1.06352]
[1742127267876,0.00798956,1880.6,1880.5,6.44522]
[1742127270781,0.00798956,1880.6,1880.4,3.2078]
[1742127270782,0.00798956,1880.6,1880.2,3.929]
[1742127270978,0.00798956,1880.6,1880.4,1.06355]
[1742127271179,1.39228956,1880.6,1880.4,1.06355]
[1742127271785,2.45576956,1880.6,1880.3,2.433]
[1742127271986,2.45576956,1880.6,1880.4,1.06356]
[1742127272186,1.3843,1880.5,1880.4,1.06356]
[1742127272685,2.0682,1880.5,1880.4,1.06356]
[1742127274385,1.3843,1880.5,1880.4,1.06356]
[1742127274585,0.00798956,1880.6,1880.5,1.06352]
[1742127274888,0.00798956,1880.6,1880.5,4.99052]
[1742127275289,0.00798956,1880.6,1880.5,6.37732]
[1742127279279,0.00798956,1880.6,1880.5,6.37632]
[1742127279681,0.00798956,1880.6,1880.5,2.45032]
[1742127281681,0.00798956,1880.6,1880.4,7.1338]
[1742127281682,1.07145956,1880.6,1880.4,7.1328]
[1742127281881,2.50975956,1880.6,1880.4,4.27135]
[1742127282094,0.6661,1880.5,1880.4,4.27135]
[1742127282285,2.1044,1880.5,1880.4,4.27135]
[1742127286491,2.1044,1880.5,1880.1,5.86714]
[1742127286697,2.0811,1880.4,1880.1,8.5088]
[1742127286994,1.3932,1880.3,1880.2,1.06369]
[1742127287889,1.3932,1880.3,1880.2,2.44069]
[1742127289390,0.6879,1880.4,1880.2,1.377]
[1742127289597,2.1037,1880.4,1880.3,2.49073]
[1742127290791,2.1037,1880.4,1880.3,1.4271]
[1742127290986,2.1037,1880.4,1880.2,1.06364]
[1742127290987,3.1673,1880.4,1880.2,1.06364]
[1742127291197,1.4158,1880.3,1880.2,1.06364]
[1742127291595,1.4158,1880.3,1880.2,2.52644]
[1742127301103,1.4158,1880.3,1880.2,6.44644]
[1742127301408,0.6879,1880.4,1880.3,1.06363]
[1742127301612,2.0592,1880.4,1880.2,3.92]
[1742127301806,2.0592,1880.4,1880.3,1.06363]
[1742127302111,0.6879,1880.4,1880.3,1.06363]
[1742127302312,0.6879,1880.4,1880.3,2.50933]
[1742127303613,0.6879,1880.4,1880.3,5.71713]
[1742127306812,0.00798956,1880.6,1880.3,4.6535]
[1742127307016,0.00798956,1880.6,1880.5,4.27132]
[1742127307311,0.00798956,1880.6,1880.5,8.19032]
[1742127307615,0.00798956,1880.6,1880.5,8.88662]
[1742127311115,0.00798956,1880.6,1880.5,4.27132]
[1742127311318,0.00798956,1880.6,1880.5,8.18932]
[1742127313222,0.00798956,1880.6,1880.5,4.27132]
[1742127314017,0.72588956,1880.6,1880.5,4.27132]
[1742127315816,1.41418956,1880.6,1880.5,4.27132]
[1742127316917,2.47764956,1880.6,1880.5,4.27132]
[1742127317109,1.41418956,1880.6,1880.5,4.27132]
[1742127317309,1.41418956,1880.6,1880.0,5.8672]
[1742127317310,1.06358,1880.4,1880.0,5.8672]
[1742127317612,1.06363,1880.3,1880.2,1.06364]
[1742127317919,1.06372,1880.2,1880.1,1.06372]
[1742127318112,1.06375,1880.1,1880.0,1.06377]
[1742127318620,4.535,1880.2,1879.7,3.21578956]
[1742127318819,4.535,1880.2,1879.9,1.06386]
[1742127319022,4.535,1880.2,1880.0,1.06379]
[1742127319232,1.06378,1880.1,1879.9,1.06383]
[1742127319517,5.59871,1880.2,1880.1,1.06375]
[1742127319824,1.06375,1880.1,1880.0,1.06376]
[1742127320021,1.06377,1880.1,1880.0,1.06378]
[1742127320223,2.44218,1880.1,1880.0,1.0638]
[1742127320825,1.3784,1880.1,1880.0,1.0638]
[1742127321625,1.3784,1880.1,1879.9,1.06382]
[1742127321825,1.3784,1880.1,1879.7,4.63338956]
[1742127321826,1.06382,1880.0,1879.7,4.63338956]
[1742127322126,1.3227,1879.9,1879.8,1.06392]
[1742127322328,1.3227,1879.9,1879.8,2.46142]
[1742127322522,1.3272,1880.2,1880.1,1.06375]
[1742127322722,0.6647,1880.2,1880.1,1.06375]
[1742127323824,0.6647,1880.2,1880.1,2.46125]
[1742127324027,1.3227,1880.3,1880.0,3.2078]
[1742127324225,3.09106,1880.1,1879.9,5.3125]
[1742127324428,3.0776,1880.0,1879.9,3.915]
[1742127324619,3.0776,1880.0,1879.8,3.2078]
[1742127324819,1.3227,1879.9,1879.8,5.66922]
[1742127328734,0.6911,1880.0,1879.9,1.06386]
[1742127328932,2.0567,1880.0,1879.9,2.43296]
[1742127331832,2.0567,1880.0,1879.9,1.06386]
[1742127332637,2.0567,1880.0,1879.9,2.52006]
[1742127333543,1.3656,1880.0,1879.9,2.52006]
[1742127334031,1.3656,1880.0,1879.9,1.06386]
[1742127334538,2.42943,1880.0,1879.8,4.27169]
[1742127334732,0.6858,1879.9,1879.8,4.27169]
[1742127334932,2.0277,1879.9,1879.8,4.27169]
[1742127335230,3.09156,1879.9,1879.8,3.2078]
[1742127335426,1.06392,1879.8,1879.7,1.07191956]
[1742127335626,1.3419,1879.8,1879.7,1.07191956]
[1742127337738,2.40582,1879.8,1879.7,1.07191956]
[1742127339041,5.61362,1879.8,1879.7,1.07191956]
[1742127339239,5.61362,1879.8,1879.7,0.00798956]
[1742127339441,1.06401,1879.7,1879.6,1.06398]
[1742127339639,3.08471,1879.7,1879.6,1.06398]
[1742127341745,1.06403,1879.6,1879.5,0.00798956]
[1742127342045,3.18163,1879.6,1879.5,0.00798956]
[1742127342852,1.06414,1879.4,1879.3,1.06415]
[1742127343346,1.0642,1879.3,1879.2,2.48541]
[1742127343541,1.0642,1879.3,1879.1,1.06427]
[1742127343542,1.06426,1879.2,1879.1,1.06427]
[1742127343737,1.06426,1879.2,1879.1,1.3964]
[1742127343943,1.06426,1879.2,1879.0,0.72978956]
[1742127343944,1.06431,1879.1,1879.0,0.72978956]
[1742127344143,1.06431,1879.1,1879.0,3.19055956]
[1742127344345,2.50938,1879.2,1879.0,1.40438956]
[1742127344544,2.50938,1879.2,1879.1,1.3964]
[1742127345856,1.4451,1879.2,1879.1,2.46071]
[1742127346153,0.00798956,1879.3,1879.2,1.06426]
[1742127346556,0.00798956,1879.3,1879.2,2.43876]
[1742127346863,2.45888956,1879.3,1879.2,1.3745]
[1742127350864,1.06431,1879.1,1879.0,0.00798956]
[1742127351567,1.06437,1879.0,1878.9,3.2078]
[1742127351767,1.06448,1878.8,1878.7,1.06449]
[1742127352168,1.06448,1878.8,1878.7,2.52039]
[1742127352569,2.51958,1878.8,1878.7,2.52039]
[1742127352769,2.51958,1878.8,1878.7,1.4559]
[1742127352966,1.06454,1878.7,1878.6,0.00798956]
[1742127353175,2.51964,1878.7,1878.6,0.00798956]
[1742127353959,2.51964,1878.7,1878.5,1.3461]
[1742127353960,1.06462,1878.6,1878.2,3.2078]
[1742127354166,2.1304,1878.6,1878.4,2.41078]
[1742127354370,2.1304,1878.6,1878.5,1.3461]
[1742127355064,2.1304,1878.6,1878.5,2.41075]
[1742127355270,6.89044,1878.9,1878.7,1.06453]
[1742127355476,2.40994,1878.9,1878.8,1.4174]
[1742127355775,1.06444,1878.9,1878.8,1.4174]
[1742127356073,1.06453,1878.8,1878.6,1.0646]
[1742127356276,1.06453,1878.8,1878.7,1.4174]
[1742127356468,3.9354,1878.9,1878.4,0.00798956]
[1742127356676,1.06462,1878.6,1878.4,2.49008956]
[1742127356870,2.45565,1878.5,1878.4,1.42538956]
[1742127357061,1.391,1878.5,1878.4,1.42538956]
[1742127357267,1.391,1878.5,1878.4,2.49009956]
[1742127357469,2.45565,1878.5,1878.4,1.42538956]
[1742127357671,1.391,1878.5,1878.4,2.49009956]
[1742127358679,2.45565,1878.5,1878.4,1.42538956]
[1742127358978,5.66345,1878.5,1878.4,0.00798956]
[1742127361083,5.66345,1878.5,1878.4,1.07269956]
[1742127361275,5.66345,1878.5,1878.4,0.00798956]
[1742127362977,9.57245,1878.5,1878.4,0.00798956]
[1742127364986,8.5078,1878.5,1878.4,1.07269956]
[1742127365388,9.57245,1878.5,1878.4,1.07269956]
[1742127365583,8.5078,1878.5,1878.4,3.15419956]
[1742127365783,9.57245,1878.5,1878.4,3.15419956]
[1742127365989,9.57245,1878.5,1878.4,2.08948956]
[1742127367681,9.57245,1878.5,1878.4,0.00798956]
[1742127367990,1.06477,1878.3,1878.2,1.4057]
[1742127368290,1.06494,1878.0,1877.9,1.06496]
[1742127368487,1.06503,1877.9,1877.8,1.06501]
[1742127368790,0.699,1878.1,1877.8,1.4057]
[1742127368985,4.93617,1878.2,1878.1,1.06488]
[1742127369184,1.06494,1878.0,1877.9,1.06499]
[1742127369387,1.06494,1878.0,1877.9,1.4057]
[1742127369587,4.97174,1878.0,1877.9,1.4057]
[1742127369790,1.06505,1877.8,1877.7,1.72529]
[1742127371091,1.06505,1877.8,1877.7,0.6602]
[1742127371390,2.51035,1877.8,1877.7,2.07]
[1742127372186,5.71815,1877.8,1877.7,2.07]
[1742127372787,5.71815,1877.8,1877.7,1.4098]
[1742127373393,1.06522,1877.5,1877.4,0.6744]
[1742127374591,1.06522,1877.5,1877.4,1.73968]
[1742127374793,2.52732,1877.5,1877.4,0.6744]
[1742127375193,2.52732,1877.5,1877.4,2.0644]
[1742127375788,2.52732,1877.5,1877.4,3.12968]
[1742127376091,1.4621,1877.5,1877.4,3.12968]
[1742127376399,2.52732,1877.5,1877.4,3.12968]
[1742127376892,2.52732,1877.5,1877.4,2.0644]
[1742127377892,1.06533,1877.4,1877.2,1.06534]
[1742127378193,2.44068,1877.4,1877.3,1.432]
[1742127378985,5.64848,1877.4,1877.3,1.432]
[1742127379302,5.64848,1877.4,1877.1,1.78722]
[1742127379303,1.06539,1877.2,1877.1,1.78722]
[1742127379894,1.06539,1877.2,1877.1,0.7218]
[1742127380191,1.0655,1877.1,1876.9,1.06551]
[1742127380392,1.0655,1877.1,1876.9,1.74461]
[1742127380592,1.0655,1877.1,1877.0,1.3902]
[1742127380901,1.0655,1877.1,1877.0,2.4557]
[1742127381195,4.96771,1877.2,1877.1,1.06545]
[1742127381399,1.06546,1877.1,1877.0,1.06547]
[1742127381591,2.42906,1877.1,1877.0,2.45567]
[1742127381788,1.3636,1877.1,1876.3,20.92103316]
[1742127381989,3.2078,1876.9,1876.8,2.45577]
[1742127382190,4.28134956,1876.9,1876.8,1.3902]
[1742127382396,4.28134956,1876.9,1876.6,0.6791]
[1742127382397,1.06565,1876.8,1876.6,1.06569]
[1742127385199,3.12372,1876.8,1876.7,1.3902]
[1742127386298,2.42922,1876.8,1876.7,1.3902]
[1742127387889,2.42922,1876.8,1876.7,1.3902]
[1742127388597,1.06573,1876.6,1876.5,0.6791]
[1742127388787,1.06579,1876.5,1876.4,1.37]
[1742127388992,2.52929,1876.5,1876.4,1.37]
[1742127390500,3.18909,1876.5,1876.4,1.37]
[1742127391592,1.06584,1876.4,1876.3,0.7217]
[1742127391898,5.73714,1876.4,1876.3,0.7217]
[1742127393599,1.06596,1876.2,1876.1,2.43598]
[1742127393801,1.06596,1876.2,1876.1,1.79478]
[1742127394306,1.06596,1876.2,1876.1,0.7288]
[1742127394500,1.06596,1876.2,1876.1,1.79481]
[1742127394693,1.06596,1876.2,1876.1,0.7288]
[1742127395296,1.06596,1876.2,1876.1,1.79481]
[1742127395498,1.06596,1876.2,1876.1,0.7288]
[1742127396499,1.4346,1876.3,1876.1,0.7288]
[1742127396797,1.06585,1876.4,1876.1,3.9366]
[1742127397000,1.0659,1876.3,1876.2,1.06596]
[1742127397404,1.06596,1876.2,1876.1,3.9366]
[1742127397600,1.06596,1876.2,1876.1,5.00261]
[1742127397800,1.06589,1876.4,1876.2,1.06596]
[1742127398002,2.51926,1876.4,1876.2,1.06593]
[1742127398304,1.06591,1876.3,1876.1,5.00258]
[1742127398502,2.51931,1876.3,1876.1,5.00258]
[1742127398702,1.4534,1876.3,1876.1,0.7288]
[1742127398905,2.51936,1876.2,1876.1,0.7288]
[1742127399398,1.4534,1876.2,1876.1,1.79481]
[1742127400107,3.2078,1876.6,1876.1,0.7288]
[1742127400300,1.06587,1876.4,1876.2,1.06591]
[1742127401106,1.06596,1876.2,1876.1,0.7288]
[1742127401605,3.81275,1876.3,1876.1,1.79478]
[1742127401809,2.38796,1876.2,1876.1,1.79478]
[1742127402803,1.322,1876.2,1876.1,0.7288]
[1742127403010,1.322,1876.2,1876.1,1.79481]
[1742127403306,2.38796,1876.2,1876.1,1.79481]
[1742127403606,2.38796,1876.2,1876.1,0.7288]
[1742127403806,1.06601,1876.1,1876.0,1.06603]
[1742127403994,1.3423,1876.1,1876.0,1.06603]
[1742127405209,2.40831,1876.1,1876.0,1.06603]
[1742127405906,1.06607,1876.0,1875.8,1.06614]
[1742127406206,5.2138,1876.0,1875.6,0.6597]
[1742127406397,4.27402,1875.8,1875.7,1.06624]
[1742127406706,3.2078,1875.8,1875.7,1.06624]
[1742127407102,4.6028,1875.8,1875.6,1.72595]
[1742127407303,1.395,1875.7,1875.6,1.72595]
[1742127407505,2.46124,1875.7,1875.6,1.72595]
[1742127408010,1.395,1875.7,1875.6,1.72595]
[1742127408805,2.46124,1875.7,1875.6,1.72595]
[1742127409011,3.13324,1875.7,1875.6,0.6597]
[1742127409403,2.067,1875.7,1875.6,1.0663]
[1742127410114,3.91298956,1876.0,1875.6,1.0663]
[1742127410115,8.18689956,1876.0,1875.9,1.06613]
[1742127410309,8.86789956,1876.0,1875.9,1.06613]
[1742127410610,7.80178956,1876.0,1875.5,2.66588]